bitfinex/quotes_SOLUSD_20240726
["timestamp","ask_amount","ask_price","bid_price","bid_amount"]
[1722015536141,58.01,182.4,182.38,5.4829]
[1722015536462,58.01,182.4,182.39,5.4827]
[1722015536463,45.0,182.4,182.39,5.4827]
[1722015536840,13.01,182.42,182.39,5.4827]
[1722015537032,45.0,182.41,182.4,5.4823]
[1722015539774,13.01,182.42,182.4,5.4823]
[1722015539775,5.73808081,182.48,182.4,28.1133]
[1722015539954,13.01,182.48,182.46,5.4805]
[1722015540257,13.01,182.5,182.47,5.4802]
[1722015540634,13.01,182.5,182.48,5.4799]
[1722015540837,13.01,182.5,182.47,5.4802]
[1722015541567,25.73503719,182.53,182.46,19.1817]
[1722015541568,13.01,182.49,182.46,19.1817]
[1722015541749,13.01,182.49,182.47,5.4803]
[1722015543847,45.0,182.48,182.47,5.4803]
[1722015546770,58.01,182.48,182.43,19.1851]
[1722015547069,13.01,182.44,182.42,11.6056]
[1722015547251,58.01,182.43,182.4,28.8093]
[1722015547459,13.01,182.42,182.4,28.8093]
[1722015547660,58.01,182.41,182.39,5.4827]
[1722015547966,58.01,182.4,182.38,6.5267]
[1722015548175,13.01,182.39,182.38,6.5267]
[1722015548383,58.01,182.39,182.38,6.5267]
[1722015548547,58.01,182.39,182.37,19.1912]
[1722015548749,45.0,182.38,182.37,19.1912]
[1722015549349,20.0,182.43,182.38,5.4829]
[1722015549549,13.01,182.39,182.38,5.4829]
[1722015549849,45.0,182.39,182.38,5.4829]
[1722015550570,45.0,182.39,182.37,13.7081]
[1722015550747,45.0,182.38,182.37,19.1911]
[1722015551571,13.01,182.42,182.37,26.7181]
[1722015551745,13.01,182.42,182.39,13.7062]
[1722015552248,13.01,182.43,182.39,19.1887]
[1722015552449,45.0,182.42,182.41,5.4821]
[1722015553178,45.0,182.42,182.39,19.1886]
[1722015553550,45.0,182.42,182.4,5.4822]
[1722015553946,58.01,182.42,182.4,5.4822]
[1722015554449,13.01,182.41,182.4,5.4822]
[1722015555271,13.01,182.41,182.39,13.7062]
[1722015555651,45.0,182.4,182.39,19.1888]
[1722015557173,13.01,182.42,182.4,5.4824]
[1722015557373,13.01,182.43,182.4,5.4824]
[1722015557558,58.01,182.42,182.4,5.4824]
[1722015560971,13.01,182.41,182.39,13.7062]
[1722015561170,45.0,182.4,182.39,13.7062]
[1722015562361,45.0,182.4,182.39,19.1889]
[1722015565363,58.01,182.4,182.39,19.1889]
[1722015565676,45.0,182.4,182.39,19.1889]
[1722015566193,13.18,182.43,182.39,13.7062]
[1722015566487,45.0,182.42,182.41,5.4821]
[1722015566647,58.01,182.42,182.41,5.4821]
[1722015567182,45.0,182.42,182.41,5.4821]
[1722015567975,58.01,182.42,182.39,19.1886]
[1722015568184,58.01,182.42,182.4,5.4823]
[1722015569951,33.01,182.41,182.36,13.709]
[1722015570170,33.01,182.41,182.34,5.484]
[1722015570171,13.01,182.37,182.34,5.484]
[1722015570460,58.01,182.36,182.34,5.484]
[1722015570857,58.01,182.36,182.35,5.4839]
[1722015571158,13.01,182.38,182.34,13.7101]
[1722015571357,45.0,182.37,182.36,5.4836]
[1722015572087,0.17,182.41,182.37,13.7083]
[1722015572378,13.01,182.4,182.35,40.4284]
[1722015572551,45.0,182.39,182.38,19.1906]
[1722015575576,45.0,182.39,182.38,13.7076]
[1722015575764,58.01,182.39,182.38,13.7076]
[1722015576582,58.01,182.39,182.36,5.4836]
[1722015576761,13.01,182.38,182.36,5.4836]
[1722015576962,45.0,182.37,182.36,5.4836]
[1722015578504,0.17,182.41,182.38,13.7075]
[1722015578789,20.0,182.47,182.38,13.01]
[1722015578986,13.01,182.44,182.42,13.7039]
[1722015579285,6.0477,182.49,182.42,13.7039]
[1722015579286,13.01,182.45,182.43,5.4815]
[1722015579470,13.01,182.45,182.42,19.1856]
[1722015579673,13.01,182.46,182.45,5.4809]
[1722015579885,5.73497492,182.49,182.45,5.4808]
[1722015580187,13.01,182.47,182.45,5.4808]
[1722015580363,13.01,182.46,182.45,5.4808]
[1722015580562,13.01,182.46,182.44,19.1836]
[1722015580890,13.01,182.46,182.45,5.4809]
[1722015581659,5.73497492,182.49,182.44,13.7025]
[1722015581989,13.01,182.49,182.44,26.7125]
[1722015582196,13.01,182.47,182.45,5.4807]
[1722015582563,13.01,182.47,182.44,19.1837]
[1722015582793,13.01,182.46,182.44,13.7025]
[1722015582968,13.01,182.45,182.44,19.1837]
[1722015583986,58.01,182.45,182.44,19.1837]
[1722015584358,58.18,182.45,182.4,19.9847]
[1722015584565,13.01,182.41,182.4,13.7059]
[1722015584760,58.01,182.41,182.38,5.483]
[1722015584975,13.01,182.39,182.38,5.483]
[1722015585184,58.01,182.39,182.36,25.6354]
[1722015585381,58.01,182.38,182.37,5.4832]
[1722015586395,58.01,182.38,182.36,19.1921]
[1722015586570,13.01,182.37,182.36,19.1921]
[1722015586772,58.01,182.37,182.36,19.1921]
[1722015587981,77.5217,182.43,182.38,5.483]
[1722015588286,13.01,182.39,182.38,5.483]
[1722015588486,13.18,182.39,182.36,13.7085]
[1722015588667,13.01,182.37,182.36,13.7085]
[1722015589592,45.0,182.37,182.36,19.1921]
[1722015592474,58.01,182.37,182.36,13.7085]
[1722015593203,58.01,182.37,182.34,5.4842]
[1722015593405,13.01,182.35,182.34,5.4842]
[1722015593601,58.01,182.35,182.34,5.4842]
[1722015593907,58.01,182.35,182.33,21.4076]
[1722015594081,45.0,182.34,182.33,21.4076]
[1722015595400,45.0,182.34,182.33,15.9232]
[1722015595607,58.18,182.34,182.29,13.7143]
[1722015595904,13.01,182.32,182.29,13.7143]
[1722015596086,45.0,182.31,182.3,5.4854]
[1722015597508,58.01,182.31,182.29,13.7143]
[1722015597685,13.01,182.3,182.29,13.7143]
[1722015597890,58.01,182.3,182.29,13.7143]
[1722015599088,45.0,182.3,182.29,19.2]
[1722015599284,13.01,182.31,182.29,19.2]
[1722015599487,26.0477,182.38,182.29,19.2]
[1722015599488,13.01,182.33,182.31,5.4851]
[1722015599687,45.0,182.32,182.29,13.7143]
[1722015600012,58.01,182.32,182.3,5.4853]
[1722015600196,58.01,182.32,182.29,19.2]
[1722015600708,13.01,182.3,182.26,13.7164]
[1722015600908,13.01,182.28,182.27,5.4863]
[1722015601086,58.01,182.28,182.27,5.4863]
[1722015601288,58.01,182.28,182.26,19.2029]
[1722015601505,45.0,182.27,182.26,19.2029]
[1722015601893,13.01,182.3,182.26,13.7164]
[1722015602089,13.01,182.31,182.26,26.7264]
[1722015602288,45.0,182.3,182.26,13.7164]
[1722015602509,45.0,182.3,182.29,5.4857]
[1722015602815,13.01,182.33,182.28,26.7245]
[1722015603006,45.0,182.32,182.29,13.01]
[1722015603210,45.0,182.33,182.3,5.4853]
[1722015603394,0.17,182.34,182.3,5.4853]
[1722015603596,25.73466829,182.37,182.3,13.7131]
[1722015603910,14.4794,182.43,182.35,5.4839]
[1722015603911,20.0,182.4,182.35,5.4839]
[1722015604128,25.4833,182.38,182.34,13.7102]
[1722015604413,5.4833,182.37,182.31,29.3797]
[1722015604621,5.4833,182.37,182.32,5.4846]
[1722015604793,5.4833,182.37,182.33,5.4845]
[1722015605297,45.0,182.36,182.33,5.4845]
[1722015605997,5.4827,182.39,182.35,5.4839]
[1722015606315,11.21214926,182.4,182.35,5.4839]
[1722015606712,5.72964926,182.4,182.36,5.4836]
[1722015606886,5.72964926,182.4,182.35,13.7092]
[1722015607084,5.72964926,182.4,182.35,19.1928]
[1722015607290,5.72964926,182.4,182.36,5.4835]
[1722015608107,45.0,182.39,182.36,5.4835]
[1722015608333,5.72964926,182.4,182.37,5.4832]
[1722015608618,5.72964926,182.4,182.36,5.4836]
[1722015608795,11.21204926,182.4,182.35,19.1931]
[1722015609487,5.72964926,182.4,182.36,5.4836]
[1722015609693,45.0,182.39,182.37,5.4832]
[1722015610202,45.0,182.39,182.38,5.483]
[1722015610402,45.0,182.39,182.35,13.7092]
[1722015610616,45.0,182.39,182.37,5.4832]
[1722015611303,45.0,182.39,182.36,5.4836]
[1722015612210,45.0,182.39,182.35,13.7092]
[1722015612394,45.0,182.39,182.36,1.09656228]
[1722015612600,45.0,182.39,182.38,5.483]
[1722015612987,45.0,182.39,182.35,13.7092]
[1722015613222,45.0,182.4,182.36,5.4835]
[1722015614424,50.4824,182.4,182.35,19.193]
[1722015614599,5.4828,182.39,182.32,13.712]
[1722015614796,45.0,182.38,182.35,5.4839]
[1722015615103,45.0,182.38,182.32,13.712]
[1722015615104,45.0,182.38,182.36,5.4836]
[1722015615298,0.17,182.41,182.37,5.4833]
[1722015615499,45.17,182.41,182.37,5.4833]
[1722015616606,0.17,182.41,182.37,5.4833]
[1722015618008,5.6521,182.41,182.37,5.4833]
[1722015618199,45.0,182.4,182.38,5.4829]
[1722015618525,0.17,182.41,182.38,5.4829]
[1722015618715,0.17,182.41,182.37,19.1916]
[1722015619499,5.6522,182.41,182.37,13.7083]
[1722015619704,50.4825,182.4,182.35,5.4838]
[1722015619905,5.4834,182.37,182.32,5.4846]
[1722015620235,50.4837,182.36,182.32,5.4846]
[1722015620409,0.17,182.35,182.32,5.4846]
[1722015621008,0.17,182.35,182.31,41.4936]
[1722015621697,0.17,182.35,182.32,5.4848]
[1722015623212,13.03,182.34,182.33,5.4845]
[1722015623528,58.03,182.34,182.33,5.4845]
[1722015623727,45.0,182.34,182.33,5.4845]
[1722015625327,78.03,182.34,182.28,13.7148]
[1722015625508,13.03,182.32,182.28,13.7148]
[1722015625834,13.03,182.3,182.28,13.7148]
[1722015626008,5.4851,182.32,182.28,19.2008]
[1722015626209,13.03,182.3,182.28,19.2008]
[1722015626922,13.03,182.31,182.29,5.4857]
[1722015627142,45.0,182.3,182.29,5.4857]
[1722015627440,13.03,182.32,182.3,5.4854]
[1722015627731,45.0,182.31,182.3,5.4854]
[1722015628313,13.03,182.34,182.32,5.4848]
[1722015628630,45.0,182.33,182.32,5.4848]
[1722015630124,45.0,182.33,182.3,26.7432]
[1722015630125,45.0,182.33,182.31,5.485]
[1722015630342,45.0,182.34,182.31,5.485]
[1722015630716,13.03,182.33,182.3,13.7132]
[1722015630913,58.03,182.32,182.28,5.4858]
[1722015631116,13.03,182.31,182.28,5.4858]
[1722015631312,13.03,182.31,182.29,5.4857]
[1722015631515,58.03,182.32,182.29,5.4857]
[1722015631731,13.03,182.31,182.29,5.4857]
[1722015632740,13.03,182.31,182.3,5.4854]
[1722015633035,58.03,182.31,182.3,5.4854]
[1722015633239,45.0,182.31,182.27,35.5948]
[1722015633416,45.0,182.32,182.3,5.4853]
[1722015633740,45.0,182.33,182.3,5.4853]
[1722015633914,0.17,182.32,182.3,5.4853]
[1722015634839,20.17,182.32,182.27,35.5948]
[1722015635024,45.0,182.31,182.27,35.5948]
[1722015635219,45.0,182.31,182.27,25.8544]
[1722015635428,20.17,182.3,182.24,13.7178]
[1722015635632,50.4857,182.29,182.24,19.2049]
[1722015636015,0.17,182.28,182.24,19.2049]
[1722015637441,20.17,182.28,182.24,19.2049]
[1722015637616,45.0,182.27,182.24,19.2049]
[1722015638012,45.0,182.27,182.24,13.7178]
[1722015638214,45.0,182.27,182.24,19.205]
[1722015638712,45.17,182.28,182.24,19.205]
[1722015639229,50.6561,182.28,182.24,19.205]
[1722015639618,45.17,182.28,182.23,5.4875]
[1722015639943,5.4869,182.25,182.21,19.983473]
[1722015640151,5.4869,182.25,182.08,1.09753418]
[1722015640152,46.06,182.22,182.08,1.09753418]
[1722015640355,20.0,182.2,182.14,13.7254]
[1722015640640,45.0,182.21,182.14,13.7254]
[1722015640841,20.17,182.2,182.14,13.7254]
[1722015641034,45.0,182.19,182.16,5.4896]
[1722015641445,0.17,182.18,182.16,5.4896]
[1722015642221,25.4894,182.17,182.11,5.4908]
[1722015642417,45.17,182.16,182.12,5.4908]
[1722015643744,45.0,182.16,182.13,5.4905]
[1722015643946,45.0,182.16,182.15,5.4899]
[1722015644651,5.4881,182.21,182.16,5.4895]
[1722015644839,45.0,182.2,182.17,5.4893]
[1722015645045,25.4879,182.22,182.17,5.4893]
[1722015645224,5.4881,182.21,182.16,5.4896]
[1722015645631,25.4886,182.2,182.15,13.7242]
[1722015646551,20.0,182.22,182.15,13.7242]
[1722015646853,45.17,182.21,182.15,13.7242]
[1722015647350,50.6584,182.21,182.16,5.4895]
[1722015647937,5.4885,182.2,182.16,5.4895]
[1722015648149,45.0,182.19,182.16,5.4895]
[1722015648345,50.6582,182.21,182.16,5.4895]
[1722015648525,50.6582,182.21,182.17,5.4893]
[1722015648724,50.6582,182.21,182.15,13.7242]
[1722015648954,5.4885,182.2,182.15,19.2139]
[1722015649135,45.0,182.19,182.15,19.2139]
[1722015649538,0.17,182.21,182.15,13.7242]
[1722015649860,0.17,182.21,182.17,5.4893]
[1722015650452,5.6582,182.21,182.17,5.4893]
[1722015650646,5.6582,182.21,182.16,5.4896]
[1722015650867,45.0,182.2,182.16,5.4896]
[1722015651154,50.4885,182.2,182.15,19.2141]
[1722015652434,5.4887,182.19,182.15,19.2141]
[1722015652637,45.0,182.18,182.15,19.2141]
[1722015653248,45.0,182.18,182.15,13.7242]
[1722015653924,5.4894,182.17,182.14,23.1185]
[1722015654128,45.0,182.16,182.14,6.459]
[1722015654327,45.0,182.16,182.13,5.4905]
[1722015654751,45.17,182.17,182.13,5.4905]
[1722015654929,0.17,182.16,182.13,5.4905]
[1722015655544,0.17,182.16,182.12,19.2176]
[1722015656048,5.6597,182.16,182.12,19.2176]
[1722015656263,45.0,182.15,182.12,19.2176]
[1722015656566,45.0,182.15,182.1,21.1311]
[1722015656567,5.6602,182.14,182.1,21.1311]
[1722015656731,45.0,182.13,182.1,15.6397]
[1722015657840,45.0,182.13,182.1,21.1311]
[1722015658041,45.0,182.13,182.1,15.6397]
[1722015658253,5.4906,182.13,182.1,15.6397]
[1722015658565,5.4906,182.13,182.09,6.3812]
[1722015658766,45.0,182.12,182.09,6.3812]
[1722015658976,45.0,182.12,182.07,13.7303]
[1722015659455,45.0,182.12,182.09,5.4916]
[1722015659755,65.0,182.13,182.07,19.2226]
[1722015659963,5.4915,182.1,182.05,28.4093]
[1722015660163,45.0,182.09,182.05,22.9166]
[1722015660657,5.6621,182.08,182.05,22.9166]
[1722015660837,45.0,182.07,182.05,22.9166]
[1722015661034,45.0,182.07,182.04,5.4932]
[1722015661238,45.17,182.08,182.05,5.4929]
[1722015661667,45.17,182.08,182.03,14.508973]
[1722015661668,45.0,182.08,182.03,0.775273]
[1722015661844,45.0,182.09,182.05,13.732]
[1722015662243,65.0,182.09,182.05,13.732]
[1722015662550,0.17,182.08,182.06,5.4926]
[1722015662744,45.0,182.1,182.06,5.4926]
[1722015663060,0.17,182.09,182.07,5.4923]
[1722015663362,45.0,182.1,182.07,5.4923]
[1722015663659,45.17,182.11,182.07,5.4923]
[1722015663865,45.17,182.11,182.05,13.732]
[1722015664158,25.6614,182.11,182.06,5.4926]
[1722015664365,45.0,182.1,182.06,5.4926]
[1722015664672,20.0,182.16,182.07,14.82876034]
[1722015664842,20.0,182.16,182.09,13.7287]
[1722015665165,5.4903,182.14,182.09,19.2204]
[1722015665373,5.4906,182.13,182.09,13.7287]
[1722015665667,25.4903,182.14,182.09,19.2204]
[1722015666368,45.17,182.13,182.1,5.4914]
[1722015666957,45.17,182.13,182.09,19.2204]
[1722015667155,5.4909,182.12,182.07,21.8982]
[1722015667463,45.17,182.11,182.07,21.8982]
[1722015667672,5.4917,182.1,182.07,21.8982]
[1722015667849,20.0,182.11,182.09,5.4917]
[1722015668170,20.0,182.12,182.07,21.8982]
[1722015668389,0.17,182.11,182.07,27.3905]
[1722015668942,0.17,182.11,182.08,5.4918]
[1722015669456,45.17,182.11,182.09,5.4916]
[1722015669762,45.17,182.11,182.08,5.492]
[1722015670264,45.17,182.11,182.07,27.3905]
[1722015670961,45.17,182.11,182.08,5.492]
[1722015671168,45.17,182.11,182.09,13.7293]
[1722015671344,20.0,182.14,182.09,13.7293]
[1722015671544,0.17,182.13,182.09,13.7293]
[1722015671843,0.17,182.13,182.09,19.2208]
[1722015672071,0.17,182.13,182.1,5.4913]
[1722015672272,0.17,182.13,182.09,13.7293]
[1722015672648,31.22189403,182.16,182.09,13.7293]
[1722015672967,25.73219403,182.16,182.11,13.7274]
[1722015673142,5.73219403,182.16,182.11,13.7274]
[1722015673348,20.0,182.18,182.14,5.4902]
[1722015673848,31.79361879,182.2,182.11,13.7274]
[1722015673849,25.73361879,182.2,182.13,13.7258]
[1722015674054,5.73361879,182.2,182.11,27.4558]
[1722015674265,20.0,182.22,182.11,27.4558]
[1722015674468,20.0,182.2,182.16,5.4896]
[1722015674972,20.0,182.2,182.17,5.4893]
[1722015675160,25.4885,182.2,182.15,19.2143]
[1722015675362,5.4888,182.19,182.15,13.7244]
[1722015675561,25.4885,182.2,182.15,19.2143]
[1722015675760,20.0,182.22,182.15,13.7244]
[1722015676176,37.28276681,182.23,182.15,13.7244]
[1722015676371,5.73496681,182.23,182.15,27.4487]
[1722015676670,20.0,182.26,182.2,13.7211]
[1722015676975,25.4861,182.28,182.23,5.4874]
[1722015677162,5.73387036,182.29,182.24,5.4871]
[1722015677366,5.73387036,182.29,182.25,13.7171]
[1722015679479,0.17,182.28,182.25,13.7171]
[1722015679690,45.17,182.28,182.25,13.7171]
[1722015680677,45.17,182.28,182.26,5.4865]
[1722015681084,0.17,182.28,182.26,5.4865]
[1722015681265,0.17,182.28,182.25,19.204]
[1722015681466,0.17,182.28,182.25,13.7171]
[1722015682380,0.17,182.28,182.25,19.204]
[1722015682755,0.17,182.28,182.22,21.4146]
[1722015682756,5.4863,182.27,182.23,5.4874]
[1722015682989,5.487,182.25,182.19,13.7218]
[1722015683357,45.17,182.24,182.21,5.4881]
[1722015683761,5.6573,182.24,182.19,19.2103]
[1722015683968,45.0,182.23,182.19,19.2103]
[1722015684371,5.4879,182.22,182.18,28.1637]
[1722015684679,45.17,182.21,182.18,11.9928]
[1722015685073,0.17,182.21,182.18,11.9928]
[1722015685285,0.17,182.21,182.19,5.4887]
[1722015686277,45.0,182.22,182.2,5.4883]
[1722015686661,45.0,182.23,182.2,5.4883]
[1722015687175,45.0,182.23,182.18,25.7146]
[1722015687388,45.0,182.23,182.19,5.4886]
[1722015687568,50.4876,182.23,182.18,20.2259]
[1722015687973,0.17,182.22,182.18,20.2259]
[1722015688171,0.17,182.22,182.18,25.7149]
[1722015688390,25.6579,182.22,182.18,25.7149]
[1722015688693,45.0,182.21,182.18,20.2259]
[1722015689184,45.0,182.21,182.19,5.4887]
[1722015689395,65.17,182.22,182.18,13.7221]
[1722015689585,65.17,182.22,182.17,5.4891]
[1722015689972,70.6581,182.22,182.17,5.4891]
[1722015691697,65.17,182.22,182.18,5.4888]
[1722015691899,45.17,182.22,182.19,5.4885]
[1722015692192,45.17,182.22,182.2,5.4883]
[1722015692193,0.17,182.22,182.2,5.4883]
[1722015692669,0.17,182.22,182.19,5.4886]
[1722015693091,0.17,182.22,182.18,5.489]
[1722015693696,5.6579,182.22,182.17,19.2122]
[1722015693893,45.0,182.21,182.17,19.2122]
[1722015694193,70.4883,182.21,182.17,13.7229]
[1722015694394,0.17,182.2,182.17,13.7229]
[1722015694804,5.6586,182.2,182.15,5.4899]
[1722015695100,45.0,182.19,182.15,5.4899]
[1722015695297,45.0,182.19,182.14,35.7836]
[1722015695599,45.17,182.2,182.17,5.4893]
[1722015695767,45.17,182.2,182.18,5.489]
[1722015696674,45.0,182.2,182.19,5.4887]
[1722015700799,45.4869,182.26,182.18,13.7221]
[1722015700980,40.0,182.26,182.18,13.7221]
[1722015701183,25.4873,182.24,182.18,13.7221]
[1722015702195,25.4873,182.24,182.19,5.4885]
[1722015702399,45.17,182.23,182.19,5.4885]
[1722015703200,13.04,182.21,182.19,5.4885]
[1722015704103,45.0,182.2,182.19,5.4885]
[1722015705702,58.04,182.2,182.19,5.4885]
[1722015707909,58.04,182.2,182.18,19.2111]
[1722015708090,13.04,182.19,182.18,13.7221]
[1722015708300,58.04,182.19,182.16,5.4896]
[1722015708502,58.04,182.18,182.17,5.4893]
[1722015711491,58.04,182.18,182.15,13.7245]
[1722015711692,58.04,182.18,181.86,20.0]
[1722015711693,13.04,182.16,182.1,15.203]
[1722015711990,20.17,182.15,182.11,5.4911]
[1722015712189,20.17,182.15,182.1,19.2197]
[1722015712190,45.0,182.14,182.1,19.2197]
[1722015712397,20.17,182.13,182.1,19.2197]
[1722015712605,45.0,182.12,182.1,19.2197]
[1722015712913,13.21,182.11,182.1,19.2197]
[1722015713097,58.21,182.11,182.1,19.2197]
[1722015715392,58.21,182.11,182.1,13.7283]
[1722015716316,45.0,182.11,182.1,19.2197]
[1722015716800,58.04,182.11,182.1,19.2197]
[1722015717110,58.04,182.11,182.1,13.7283]
[1722015717812,58.04,182.11,182.1,19.2197]
[1722015718008,58.04,182.11,182.1,13.7283]
[1722015719316,58.04,182.11,182.09,5.4915]
[1722015719498,58.04,182.1,182.09,5.4915]
[1722015720512,45.0,182.1,182.09,5.4915]
[1722015721224,13.04,182.12,182.09,13.7288]
[1722015721394,45.0,182.11,182.09,13.7288]
[1722015721595,58.04,182.11,182.09,13.7288]
[1722015721902,25.49,182.15,182.11,5.4909]
[1722015722100,20.0,182.15,182.09,13.7288]
[1722015722416,25.73542483,182.15,182.09,13.7288]
[1722015722617,31.22552483,182.15,182.09,13.7288]
[1722015722794,5.4903,182.14,182.09,19.2205]
[1722015723132,5.4903,182.14,182.07,5.4921]
[1722015723133,13.04,182.1,182.07,5.4921]
[1722015723412,58.04,182.09,182.07,5.4921]
[1722015723587,13.04,182.11,182.09,13.7292]
[1722015723793,45.0,182.1,182.09,13.7292]
[1722015724013,58.04,182.1,182.09,13.7292]
[1722015724195,58.04,182.1,182.08,5.492]
[1722015724396,13.04,182.09,182.07,5.4923]
[1722015724616,45.0,182.08,182.06,13.7315]
[1722015724843,58.04,182.08,182.06,19.2241]
[1722015725699,45.0,182.08,182.06,19.2241]
[1722015726313,5.6609,182.12,182.07,5.4922]
[1722015726525,13.04,182.1,182.08,5.4918]
[1722015726834,45.0,182.09,182.08,5.4918]
[1722015727127,78.04,182.09,182.03,22.275773]
[1722015727325,78.04,182.09,182.03,0.775273]
[1722015727326,13.04,182.04,182.03,0.775273]
[1722015727626,58.04,182.04,182.03,0.775273]
[1722015728308,83.5332,182.04,182.03,0.775273]
[1722015728505,83.7032,182.04,182.03,0.775273]
[1722015730114,103.7032,182.04,182.03,0.775273]
[1722015732297,5.4948,181.99,181.95,13.7398]
[1722015732504,13.04,181.97,181.95,19.2357]
[1722015732901,20.0,182.02,181.95,13.7398]
[1722015733125,13.04,181.99,181.95,13.7398]
[1722015733498,45.0,181.98,181.95,13.7398]
[1722015733702,58.04,181.98,181.95,19.2357]
[1722015735436,0.17,182.01,181.97,5.4952]
[1722015735637,25.73708684,182.04,181.97,13.7378]
[1722015735957,18.5344,182.01,181.97,13.7378]
[1722015736111,25.73708684,182.04,181.92,22.269]
[1722015736112,5.4948,181.99,181.94,26.7807]
[1722015736311,33.04,182.0,181.95,5.4957]
[1722015736524,33.04,182.0,181.96,5.4956]
[1722015736726,18.77708684,182.04,182.0,5.4942]
[1722015737027,13.04,182.05,182.0,13.04]
[1722015737239,13.04,182.05,182.02,5.4938]
[1722015737528,5.4924,182.07,182.02,5.4938]
[1722015737529,11.22641741,182.07,182.02,5.4938]
[1722015737732,13.04,182.06,182.02,5.4938]
[1722015737934,13.04,182.06,182.03,5.4935]
[1722015738318,11.22641741,182.07,182.02,5.4938]
[1722015738520,13.04,182.06,182.02,5.4938]
[1722015738722,11.22641741,182.07,182.02,5.4938]
[1722015738935,13.04,182.06,182.02,5.4938]
[1722015739141,5.493,182.05,182.01,13.7348]
[1722015739314,18.5327,182.06,182.01,13.7348]
[1722015739637,18.5327,182.06,182.01,32.2687]
[1722015740040,45.0,182.05,182.01,32.2687]
[1722015740349,58.04,182.05,182.02,5.4938]
[1722015740535,58.04,182.05,182.01,19.2289]
[1722015741442,63.533,182.05,182.01,19.2289]
[1722015741946,18.5333,182.04,181.99,36.0705]
[1722015742124,58.04,182.03,181.99,28.5252]
[1722015742624,13.04,182.01,181.99,23.0305]
[1722015742824,58.04,182.0,181.95,22.9776]
[1722015743020,13.04,181.97,181.95,22.9776]
[1722015743224,45.0,181.96,181.95,22.9776]
[1722015743745,13.04,181.99,181.95,22.9776]
[1722015744049,45.0,181.98,181.96,19.2343]
[1722015744221,45.0,181.98,181.92,13.7422]
[1722015744222,5.4954,181.97,181.92,13.7422]
[1722015744420,5.4954,181.97,181.92,26.7822]
[1722015744421,13.04,181.97,181.92,26.7822]
[1722015744625,45.0,181.99,181.94,13.7402]
[1722015744821,13.04,181.99,181.94,26.7802]
[1722015745144,45.0,181.98,181.97,5.4953]
[1722015745339,40.0,182.05,181.96,26.7786]
[1722015745534,13.04,182.01,181.96,26.7786]
[1722015745729,13.04,182.01,181.98,5.4951]
[1722015746055,13.04,182.01,181.97,5.4953]
[1722015747053,45.0,182.0,181.97,5.4953]
[1722015747954,13.04,182.01,181.98,5.4951]